bitfinex/quotes_BTCUSD_20241202
["timestamp","ask_amount","ask_price","bid_price","bid_amount"]
[1733124350798,0.5014444,96060.0,96059.0,0.0008641]
[1733124350799,0.4934444,96060.0,96059.0,0.0008641]
[1733124351038,0.5014444,96060.0,96059.0,0.0018641]
[1733124353055,0.49182222,96060.0,96059.0,0.0018641]
[1733124353766,0.34182222,96060.0,96059.0,0.0018641]
[1733124354897,0.13384521,96060.0,96059.0,0.01002051]
[1733124355121,0.13384521,96060.0,96059.0,0.0018641]
[1733124356553,0.13614865,96060.0,96059.0,0.0018641]
[1733124356814,0.13610865,96060.0,96059.0,0.0018641]
[1733124358834,0.14572928,96060.0,96059.0,0.0018641]
[1733124359022,0.14572926,96060.0,96059.0,0.0018641]
[1733124360620,0.13610865,96060.0,96059.0,0.0018641]
[1733124362030,0.11084521,96060.0,96059.0,0.0018641]
[1733124362472,0.10284521,96060.0,96059.0,0.0008641]
[1733124362697,0.10584521,96060.0,96059.0,0.0008641]
[1733124362949,0.10446584,96060.0,96059.0,0.0008641]
[1733124363400,0.10146584,96060.0,96059.0,0.0008641]
[1733124363639,0.10146584,96060.0,96059.0,0.0018641]
[1733124364093,0.10146584,96060.0,96059.0,0.0008641]
[1733124364343,0.12676915,96060.0,96059.0,0.0008641]
[1733124365730,0.12776915,96060.0,96059.0,0.0008641]
[1733124366177,0.12676915,96060.0,96059.0,0.0008641]
[1733124366629,0.13276915,96060.0,96059.0,0.0008641]
[1733124367078,0.12676915,96060.0,96059.0,0.0008641]
[1733124367553,0.14138814,96060.0,96059.0,0.0008641]
[1733124369032,0.13654228,96060.0,96059.0,0.0008641]
[1733124369249,0.93754876,96060.0,96059.0,1e-07]
[1733124369492,0.95423122,96060.0,96059.0,1e-07]
[1733124369723,0.95423122,96060.0,96024.0,0.0815]
[1733124369724,0.832864,96054.0,96024.0,0.0815]
[1733124369940,0.26714269,96034.0,96024.0,0.0815]
[1733124370166,0.208308,96012.0,96007.0,0.0469]
[1733124370398,0.208315,96009.0,96005.0,0.0759]
[1733124370621,0.023,96006.0,96005.0,0.0759]
[1733124370880,0.12814984,96006.0,96005.0,0.0759]
[1733124374271,0.10514984,96006.0,96005.0,0.0759]
[1733124374498,0.10284521,96006.0,96005.0,0.0759]
[1733124374724,8.057e-05,96009.0,96005.0,0.0837944]
[1733124375239,8.057e-05,96009.0,96006.0,0.20832]
[1733124377345,8.057e-05,96009.0,96008.0,0.208315]
[1733124377598,8.057e-05,96009.0,96008.0,0.28382084]
[1733124378784,0.00108057,96009.0,96008.0,0.28382084]
[1733124379230,8.057e-05,96009.0,96008.0,0.28480894]
[1733124379950,0.00108057,96009.0,96008.0,0.28480894]
[1733124380429,8.057e-05,96009.0,96008.0,0.28480894]
[1733124382271,8.057e-05,96009.0,96008.0,0.38480894]
[1733124382520,8.057e-05,96009.0,96008.0,0.48480894]
[1733124382751,0.023,96038.0,96025.0,0.0763]
[1733124383009,0.023,96036.0,96026.0,0.0284579]
[1733124383272,0.10514922,96035.0,96025.0,0.0763]
[1733124383760,0.10514922,96035.0,96025.0,0.284577]
[1733124383993,0.10514922,96035.0,96025.0,0.0763]
[1733124384198,0.10514922,96035.0,96030.0,0.0009835]
[1733124384479,0.10478998,96035.0,96030.0,0.2092495]
[1733124384699,0.10284521,96035.0,96031.0,0.04938275]
[1733124385155,0.003,96038.0,96033.0,0.208261]
[1733124385416,0.003,96038.0,96033.0,0.416522]
[1733124385635,0.003,96038.0,96035.0,0.287957]
[1733124385862,0.208205,96059.0,96036.0,0.10036536]
[1733124386081,0.1051487,96058.0,96050.0,0.208223]
[1733124386544,0.10284521,96058.0,96050.0,0.208223]
[1733124386781,0.0017282,96060.0,96052.0,0.25612]
[1733124386999,0.0017282,96060.0,96053.0,0.0543243]
[1733124387000,0.10284521,96059.0,96053.0,0.0543243]
[1733124387225,0.10284521,96059.0,96054.0,0.208216]
[1733124387453,0.1034415,96059.0,96053.0,0.07522658]
[1733124387697,0.1034415,96059.0,96054.0,0.208216]
[1733124387965,0.1034415,96059.0,96053.0,0.07522658]
[1733124388189,0.1034415,96059.0,96054.0,0.24924066]
[1733124388644,0.1034415,96059.0,96054.0,0.45745666]
[1733124388859,0.1034415,96059.0,96054.0,0.24924066]
[1733124389074,0.1034415,96059.0,96058.0,0.0009929]
[1733124391983,0.1051697,96059.0,96058.0,0.0009929]
[1733124392414,0.1051697,96059.0,96058.0,0.01377219]
[1733124395581,0.00232449,96059.0,96058.0,0.01377219]
[1733124396023,0.00232449,96059.0,96058.0,0.0150194]
[1733124396925,0.00232449,96059.0,96058.0,0.0950194]
[1733124397144,0.00232449,96059.0,96058.0,0.1950194]
[1733124399689,0.00332449,96059.0,96058.0,0.2062974]
[1733124400854,0.00230297,96079.0,96058.0,0.2062974]
[1733124400855,0.00230297,96079.0,96070.0,0.20818]
[1733124401059,0.10284521,96078.0,96071.0,0.099118]
[1733124402603,0.208175,96073.0,96071.0,0.0009807]
[1733124402823,0.208205,96059.0,96058.0,0.01187429]
[1733124403085,0.48635385,96059.0,96058.0,0.01187429]
[1733124403345,0.48405021,96059.0,96058.0,0.01187429]
[1733124403973,0.48605021,96059.0,96058.0,0.01187429]
[1733124404608,0.48405021,96059.0,96058.0,0.01187429]
[1733124405055,0.10457381,96059.0,96058.0,0.01187429]
[1733124405268,0.1298772,96059.0,96058.0,0.01187429]
[1733124405477,0.1298772,96059.0,96058.0,0.02113172]
[1733124406129,0.1368772,96059.0,96058.0,0.02113172]
[1733124406349,0.11157381,96059.0,96058.0,0.02113172]
[1733124406570,0.10457381,96059.0,96058.0,0.02113172]
[1733124406802,0.10657381,96059.0,96058.0,0.02113172]
[1733124408831,0.0037286,96059.0,96058.0,0.02113172]
[1733124409272,0.0037286,96059.0,96058.0,0.0223788]
[1733124409497,0.0037286,96059.0,96058.0,0.0708788]
[1733124409981,0.0017286,96059.0,96058.0,0.1708788]
[1733124410202,0.0037286,96059.0,96058.0,0.1708788]
[1733124410471,15.0,96080.0,96068.0,0.208185]
[1733124410734,15.0,96080.0,96069.0,0.00124678]
[1733124410987,15.0,96080.0,96070.0,0.08394667]
[1733124411458,15.0,96080.0,96070.0,0.08494307]
[1733124411693,15.0,96080.0,96076.0,0.208166]
[1733124411913,15.0,96080.0,96073.0,0.00124655]
[1733124411914,0.416334,96077.0,96073.0,0.00124655]
[1733124412144,15.0,96080.0,96070.0,0.0009964]
[1733124412145,0.10514853,96076.0,96070.0,0.0009964]
[1733124412390,0.20817,96075.0,96070.0,0.0009964]
[1733124412607,0.208175,96073.0,96070.0,0.0009964]
[1733124412802,0.10514825,96072.0,96070.0,0.0009964]
[1733124413256,0.208179,96071.0,96070.0,0.0009964]
[1733124413496,0.10514825,96071.0,96070.0,0.0009964]
[1733124413718,0.00230304,96077.0,96070.0,0.0009964]
[1733124413937,0.208162,96079.0,96070.0,0.0009964]
[1733124413938,0.003,96076.0,96070.0,0.0009964]
[1733124414158,0.003,96076.0,96071.0,0.14311834]
[1733124414680,0.003,96076.0,96071.0,0.09741834]
[1733124414903,0.003,96076.0,96072.0,0.208177]
[1733124415124,0.003,96076.0,96072.0,0.41760079]
[1733124415379,15.0,96080.0,96078.0,0.208162]
[1733124416785,15.0,96080.0,96073.0,0.208175]
[1733124417031,15.0,96080.0,96074.0,0.0208634]
[1733124417259,15.0,96080.0,96066.0,0.208189]
[1733124417260,0.023,96075.0,96058.0,0.01273839]
[1733124417516,0.023,96073.0,96058.0,0.01372109]
[1733124417773,0.208204,96060.0,96058.0,0.01372109]
[1733124418015,0.10514853,96059.0,96058.0,0.01372109]
[1733124419651,0.10614853,96059.0,96058.0,0.01372109]
[1733124420105,0.10514853,96059.0,96058.0,0.01372109]
[1733124420561,0.10284521,96059.0,96058.0,0.01372109]
[1733124420790,0.10284521,96059.0,96058.0,0.0359153]
[1733124421092,0.10284521,96059.0,96058.0,0.01372109]
[1733124423694,0.10284521,96059.0,96058.0,0.01372109]
[1733124423940,0.12584521,96059.0,96058.0,0.01372109]
[1733124424174,0.27814853,96059.0,96058.0,0.01273839]
[1733124424422,0.2854883,96059.0,96058.0,0.01273839]
[1733124424921,0.12584521,96059.0,96058.0,0.01273839]
[1733124425375,0.10284521,96059.0,96058.0,0.01273839]
[1733124425606,0.10384521,96059.0,96058.0,0.02206223]
[1733124426106,0.10284521,96059.0,96058.0,0.02206223]
[1733124426621,0.12914853,96059.0,96058.0,0.01273839]
[1733124427105,0.12814853,96059.0,96058.0,0.01273839]
[1733124427343,0.12914853,96059.0,96058.0,0.01273839]
[1733124428809,0.12814853,96059.0,96058.0,0.01273839]
[1733124429305,0.12987673,96059.0,96058.0,0.01273839]
[1733124429764,0.13287673,96059.0,96058.0,0.01273839]
[1733124430211,0.12987673,96059.0,96058.0,0.01273839]
[1733124430459,0.13187673,96059.0,96058.0,0.01273839]
[1733124431440,0.12957341,96059.0,96058.0,0.01273839]
[1733124431682,0.12757341,96059.0,96058.0,0.01273839]
[1733124431916,0.12987686,96059.0,96058.0,0.01273839]
[1733124432163,0.13187686,96059.0,96058.0,0.01273839]
[1733124432398,0.12957341,96059.0,96058.0,0.01273839]
[1733124432635,0.12957341,96059.0,96058.0,0.03483433]
[1733124432861,0.12757341,96059.0,96058.0,0.03483433]
[1733124433081,0.12957341,96059.0,96058.0,0.03483433]
[1733124433517,0.12757341,96059.0,96058.0,0.03483433]
[1733124433769,0.10457341,96059.0,96058.0,0.03483433]
[1733124434006,0.10457341,96059.0,96058.0,0.11703433]
[1733124434229,0.13296567,96058.0,96053.0,0.208218]
[1733124434900,0.13296567,96058.0,96053.0,0.416436]
[1733124435123,0.13296567,96058.0,96055.0,0.208214]
[1733124436752,0.13296567,96058.0,96055.0,0.209214]
[1733124438541,0.13296567,96058.0,96057.0,0.208209]
[1733124439226,0.13296567,96058.0,96057.0,0.31044297]
[1733124439445,0.13296567,96058.0,96057.0,0.3091955]
[1733124439666,0.13296567,96058.0,96057.0,0.40407815]
[1733124441107,0.13469387,96058.0,96057.0,0.40407815]
[1733124441326,0.13469387,96058.0,96057.0,0.40507815]
[1733124441846,0.0017282,96058.0,96057.0,0.19686915]
[1733124442069,0.0017282,96058.0,96057.0,0.0019865]
[1733124443640,0.0017282,96058.0,96057.0,0.0009865]
[1733124443855,0.0027282,96058.0,96057.0,0.0019865]
[1733124444308,0.0027282,96058.0,96057.0,0.0009865]
[1733124444309,0.0017282,96058.0,96057.0,0.0009865]
[1733124444523,0.0017282,96058.0,96057.0,0.02199396]
[1733124444737,0.0017282,96058.0,96057.0,0.02299396]
[1733124445408,0.0017282,96058.0,96057.0,0.0019865]
[1733124445641,0.0017282,96058.0,96057.0,0.00323413]
[1733124445876,0.0017282,96058.0,96057.0,0.13043413]
[1733124446302,0.0017282,96058.0,96057.0,0.12943413]
[1733124446515,0.0017282,96058.0,96057.0,0.13043413]
[1733124446733,0.0017282,96058.0,96057.0,0.21602995]
[1733124446984,0.0017282,96058.0,96057.0,0.21378232]
[1733124447447,0.0017282,96058.0,96057.0,0.08758232]
[1733124447678,0.0017282,96058.0,96057.0,0.08882957]
[1733124447898,0.0017282,96058.0,96057.0,0.08782957]
[1733124448112,0.0027282,96058.0,96057.0,0.08882957]
[1733124449438,0.0017282,96058.0,96057.0,0.08782957]
[1733124449879,0.0017282,96058.0,96057.0,0.42377478]
[1733124450089,0.0017282,96058.0,96057.0,0.43693171]
[1733124450306,0.0017282,96058.0,96057.0,0.43593171]
[1733124450525,0.0017282,96058.0,96057.0,0.43693171]
[1733124451173,0.0017282,96058.0,96057.0,0.43593171]
[1733124451387,0.0017282,96058.0,96057.0,0.52365612]
[1733124452325,1e-08,96059.0,96058.0,0.485007]
[1733124452557,0.0017282,96076.0,96069.0,0.208182]
[1733124452773,0.00178779,96076.0,96070.0,0.0208182]
[1733124452985,0.00178779,96076.0,96069.0,0.2091799]
[1733124453445,0.00178779,96076.0,96071.0,0.208179]
[1733124453658,0.00178779,96076.0,96070.0,0.00124677]
[1733124453870,0.00178779,96076.0,96075.0,0.02119773]
[1733124454735,0.00178779,96076.0,96075.0,0.09874435]
[1733124454963,0.00178779,96076.0,96075.0,0.16495397]
[1733124455627,0.00178779,96076.0,96075.0,0.02119773]
[1733124456526,0.00178779,96076.0,96075.0,0.02219773]
[1733124456745,0.00178779,96076.0,96069.0,0.0009979]
[1733124456746,0.127633,96076.0,96069.0,0.0009979]
[1733124456984,0.10514817,96075.0,96069.0,0.0009979]
[1733124457269,0.208172,96074.0,96069.0,0.0009979]
[1733124457483,0.12584521,96073.0,96069.0,0.0009979]
[1733124457923,0.00230312,96072.0,96069.0,0.0009979]
[1733124458133,0.12584521,96071.0,96069.0,0.0009979]
[1733124458351,0.00230312,96070.0,96069.0,0.0009979]
[1733124458567,0.12814833,96070.0,96069.0,0.0009979]
[1733124458798,0.16205914,96070.0,96069.0,0.0009979]
[1733124459028,0.208211,96056.0,96055.0,0.0008641]
[1733124459281,0.48405621,96056.0,96055.0,0.0008641]
[1733124459522,0.49370025,96056.0,96055.0,0.0008641]
[1733124459735,0.49934298,96056.0,96055.0,0.0008641]
[1733124459954,1.1344855,96056.0,96055.0,0.0008641]
[1733124460168,1.2311113,96056.0,96055.0,0.0008641]
[1733124460600,1.2361113,96056.0,96055.0,0.0008641]
[1733124461094,0.231255,96036.0,96004.0,0.14612448]
[1733124461317,0.4937416,96036.0,96004.0,0.14612448]
[1733124461537,0.49718165,96036.0,96004.0,0.1249]
[1733124461747,0.50282438,96036.0,96004.0,0.1249]
[1733124461977,0.58502438,96036.0,96005.0,0.00124933]
[1733124462224,0.58525779,96036.0,96005.0,0.00124933]
[1733124462460,0.58530252,96036.0,96005.0,0.00124933]
[1733124462956,0.57567595,96036.0,96005.0,0.00124933]
[1733124463661,0.58167595,96036.0,96005.0,0.00124933]
[1733124464120,0.58167595,96036.0,96017.0,0.0009991]
[1733124464334,0.49015976,96036.0,96017.0,0.0009991]
[1733124466122,0.50435018,96036.0,96017.0,0.0009991]
[1733124466573,0.49835018,96036.0,96017.0,0.0009991]
[1733124466827,0.49015976,96036.0,96017.0,0.0009991]
[1733124467311,0.48415976,96036.0,96017.0,0.0009991]
[1733124467528,0.49015976,96036.0,96017.0,0.0009991]
[1733124470032,0.49039546,96036.0,96017.0,0.0009991]
[1733124470249,0.48439546,96036.0,96017.0,0.0009991]
[1733124470461,0.49383551,96036.0,96017.0,0.0009991]
[1733124471123,0.48783551,96036.0,96017.0,0.0009991]
[1733124471331,0.49383551,96036.0,96017.0,0.0009991]
[1733124471538,0.57540584,96036.0,96017.0,0.0009991]
[1733124471979,0.58124349,96036.0,96017.0,0.0009991]
[1733124472196,0.49967316,96036.0,96017.0,0.0009991]
[1733124472628,0.64867316,96036.0,96017.0,0.0009991]
[1733124472866,1.26417316,96036.0,96035.0,3e-07]
[1733124473091,1.26776168,96036.0,96035.0,3e-07]
[1733124473320,1.36437191,96036.0,96035.0,3e-07]
[1733124473566,1.36278339,96036.0,96035.0,3e-07]
[1733124473821,1.26617316,96036.0,96035.0,3e-07]
[1733124474068,1.25817316,96036.0,96035.0,3e-07]
[1733124475079,1.26717316,96036.0,96035.0,3e-07]
[1733124476041,1.21817316,96036.0,96035.0,3e-07]
[1733124476280,1.32100462,96036.0,96035.0,3e-07]
[1733124476763,1.31200462,96036.0,96035.0,3e-07]
[1733124476996,1.32100462,96036.0,96035.0,3e-07]
[1733124477232,1.21817316,96036.0,96035.0,3e-07]
[1733124477465,1.20917316,96036.0,96035.0,3e-07]
[1733124477970,1.21817316,96036.0,96035.0,3e-07]
[1733124478220,1.11817316,96036.0,96035.0,3e-07]
[1733124478445,1.20917316,96036.0,96035.0,3e-07]
[1733124478681,1.22100462,96036.0,96035.0,3e-07]
[1733124478958,1.04257316,96036.0,96035.0,3e-07]
[1733124479196,1.03889741,96036.0,96035.0,3e-07]
[1733124479681,1.04233746,96036.0,96035.0,3e-07]
[1733124479912,1.03333746,96036.0,96035.0,3e-07]
[1733124480148,1.13616892,96036.0,96035.0,3e-07]
[1733124480612,1.14416892,96036.0,96035.0,3e-07]
[1733124480842,1.13616892,96036.0,96035.0,3e-07]
[1733124481079,1.14516892,96036.0,96035.0,3e-07]
[1733124481585,1.13616892,96036.0,96035.0,3e-07]
[1733124482054,1.14516892,96036.0,96035.0,3e-07]
[1733124483250,1.13616892,96036.0,96035.0,3e-07]
[1733124483760,1.04233746,96036.0,96035.0,3e-07]
[1733124484292,1.03889741,96036.0,96035.0,3e-07]
[1733124484485,1.02989741,96036.0,96035.0,3e-07]
[1733124484693,1.03889741,96036.0,96035.0,3e-07]
[1733124485109,1.02989741,96036.0,96035.0,3e-07]
[1733124485511,1.03951388,96036.0,96035.0,3e-07]
[1733124486530,0.50761388,96036.0,96035.0,3e-07]
[1733124486954,0.49961388,96036.0,96035.0,3e-07]
[1733124487376,0.50661388,96036.0,96035.0,3e-07]
[1733124487802,0.49961388,96036.0,96035.0,3e-07]
[1733124488112,0.49985689,96036.0,96035.0,3e-07]
[1733124488314,0.50929694,96036.0,96035.0,3e-07]
[1733124488578,0.52474783,96036.0,96035.0,3e-07]
[1733124488833,0.62757929,96036.0,96035.0,3e-07]
[1733124489068,0.62930729,96036.0,96035.0,3e-07]
[1733124489581,1.06037583,96036.0,96035.0,3e-07]
[1733124490087,1.06737583,96036.0,96035.0,3e-07]
[1733124490357,1.06737583,96036.0,96017.0,0.0009807]
[1733124490358,0.173,96035.0,96017.0,0.0009807]
[1733124490604,0.381294,96018.0,96017.0,0.0009807]
[1733124490831,0.208318,96007.0,96006.0,0.0008641]
[1733124491087,0.33416321,96007.0,96006.0,0.0008641]
[1733124492057,0.33416321,96007.0,96006.0,0.00146039]
[1733124492291,0.34382344,96007.0,96006.0,0.00146039]
[1733124492527,0.48416321,96007.0,96006.0,0.00146039]
[1733124492995,0.49582159,96007.0,96006.0,0.00146039]
[1733124493402,0.499693,96007.0,96006.0,0.00146039]
[1733124493632,0.503693,96007.0,96006.0,0.00146039]
[1733124493834,0.49782159,96007.0,96006.0,0.00146039]
[1733124494139,0.48416321,96007.0,96006.0,0.00146039]
[1733124494638,0.48916321,96007.0,96006.0,0.00146039]
[1733124494837,0.28084521,96007.0,96006.0,0.00146039]
[1733124495635,0.48916321,96007.0,96006.0,0.00146039]
[1733124495883,0.28084521,96007.0,96006.0,0.00146039]
[1733124496100,0.12584521,96007.0,96006.0,0.00146039]
[1733124496376,0.13114983,96007.0,96006.0,0.00146039]
[1733124496568,0.28114983,96007.0,96006.0,0.00146039]
[1733124496785,0.27584521,96007.0,96006.0,0.00146039]
[1733124497228,0.27984521,96007.0,96006.0,0.00146039]
[1733124497680,0.27584521,96007.0,96006.0,0.00146039]
[1733124497896,0.27884521,96007.0,96006.0,0.00146039]
[1733124499755,0.27584521,96007.0,96006.0,0.00146039]
[1733124500164,0.27784521,96007.0,96006.0,0.00146039]
[1733124500541,0.27584521,96007.0,96006.0,0.00146039]
[1733124500933,0.27784521,96007.0,96006.0,0.00146039]
[1733124501465,0.27584521,96007.0,96006.0,0.00146039]
[1733124501791,0.27784521,96007.0,96006.0,0.00146039]
[1733124502203,0.28750874,96007.0,96006.0,0.00146039]
[1733124502827,0.28550874,96007.0,96006.0,0.00146039]
[1733124503353,0.28550874,96007.0,96006.0,3.9e-07]
[1733124503354,0.28750874,96007.0,96006.0,3.9e-07]
[1733124503647,0.25,95998.0,95967.0,0.0823]
[1733124503858,0.381376,95980.0,95967.0,0.0823]
[1733124504064,0.56314406,95980.0,95979.0,0.00104619]
[1733124504976,0.56658411,95980.0,95979.0,0.00104619]
[1733124505605,0.55692058,95980.0,95979.0,0.00104619]
[1733124506058,0.48766126,95980.0,95979.0,0.00104619]
[1733124507144,0.49466126,95980.0,95979.0,0.00104619]
[1733124507598,0.50055067,95980.0,95979.0,0.00104619]
[1733124507811,0.49355067,95980.0,95979.0,0.00104619]
[1733124508034,0.49955067,95980.0,95979.0,0.00104619]
[1733124508265,0.59120446,95980.0,95979.0,0.00104619]
[1733124508475,0.59483447,95980.0,95979.0,0.00104619]
[1733124508726,0.58176441,95980.0,95979.0,0.00104619]
[1733124508939,0.49511062,95980.0,95979.0,0.00104619]
[1733124509181,0.49511062,95980.0,95943.0,0.00121243]
[1733124509182,0.173,95947.0,95943.0,0.00121243]
[1733124509399,0.5399,95948.0,95943.0,0.00121243]
[1733124509400,0.48429921,95944.0,95943.0,0.00121243]
[1733124509610,0.48429921,95944.0,95943.0,0.0018031]
[1733124511982,0.50495569,95944.0,95943.0,0.0018031]
[1733124512210,0.59739638,95944.0,95943.0,0.0018031]
[1733124512458,0.59383643,95944.0,95943.0,0.0018031]
[1733124512688,0.59383643,95944.0,95908.0,0.1]
[1733124512689,0.15,95917.0,95904.0,0.0008643]
[1733124512917,0.46138221,95906.0,95904.0,0.0008643]
[1733124513151,0.52271868,95906.0,95904.0,0.0008643]
[1733124513379,1.16631485,95906.0,95904.0,0.0008643]
[1733124513639,1.06261868,95906.0,95904.0,0.0008643]
[1733124514610,1.06321397,95906.0,95904.0,0.0008643]
[1733124514839,1.06321397,95906.0,95905.0,0.0004]
[1733124514840,1.06665402,95906.0,95905.0,0.0004]
[1733124515331,1.0338775,95906.0,95905.0,0.0004]
[1733124515804,1.02831755,95906.0,95905.0,0.0004]
[1733124516048,1.13413672,95906.0,95905.0,0.0004]
[1733124516254,1.13757677,95906.0,95905.0,0.0004]
[1733124516721,1.14347281,95906.0,95905.0,0.0004]
[1733124516952,1.34630427,95906.0,95905.0,0.0004]
[1733124517429,1.33730427,95906.0,95905.0,0.0004]
[1733124517689,0.1,95889.0,95886.0,0.00125473]
[1733124517954,0.48441921,95889.0,95886.0,0.00125473]
[1733124518207,0.51149912,95889.0,95886.0,0.00125473]
[1733124518467,0.48441921,95889.0,95886.0,0.00125473]
[1733124519384,0.49141921,95889.0,95886.0,0.00125473]
[1733124519876,0.25984521,95889.0,95886.0,0.00125473]
[1733124520568,0.25284521,95889.0,95886.0,0.00125473]
[1733124520836,0.30698573,95889.0,95886.0,0.00125473]
[1733124521302,0.29898573,95889.0,95886.0,0.00125473]
[1733124521528,0.25784521,95889.0,95886.0,0.00125473]
[1733124521991,0.25284521,95889.0,95886.0,0.00125473]
[1733124522269,0.25684521,95889.0,95886.0,0.00125473]
[1733124523407,0.25284521,95889.0,95886.0,0.00125473]
[1733124523851,0.10784521,95889.0,95886.0,0.00224803]
[1733124524289,0.10784521,95889.0,95888.0,0.002907]
[1733124524501,0.10284521,95889.0,95888.0,0.002907]
[1733124524721,0.10684521,95889.0,95888.0,0.002907]
[1733124525182,0.10284521,95889.0,95888.0,0.002907]
[1733124526612,0.10584521,95889.0,95888.0,0.002907]
[1733124526834,0.003,95889.0,95888.0,0.002907]
[1733124527070,0.00230734,95898.0,95889.0,0.208574]
[1733124527304,0.10284521,95897.0,95889.0,0.208574]
[1733124527547,0.10284521,95897.0,95888.0,0.0037721]
[1733124527764,0.00059529,95906.0,95897.0,0.208555]
[1733124527978,0.00059529,95906.0,95889.0,0.12895574]
[1733124527979,0.10284521,95905.0,95889.0,0.1277]
[1733124528197,0.21084806,95904.0,95889.0,0.14833663]
[1733124528406,0.10284521,95903.0,95889.0,0.14833663]
[1733124528629,0.10284521,95903.0,95896.0,0.208557]
[1733124528847,0.10284521,95903.0,95889.0,0.20673116]
[1733124528848,0.417092,95902.0,95894.0,0.0009974]
[1733124529082,0.10284521,95901.0,95894.0,0.0009974]
[1733124529331,0.20855,95900.0,95894.0,0.0009974]
[1733124529548,0.10284521,95900.0,95894.0,0.0009974]
[1733124529767,0.00290236,95906.0,95894.0,0.0009974]
[1733124529998,0.00011094,95898.0,95895.0,0.208561]
[1733124530467,0.00011094,95898.0,95894.0,0.0009974]
[1733124530684,0.10284521,95905.0,95895.0,0.208561]
[1733124530900,0.10284521,95905.0,95894.0,0.0009974]
[1733124531387,0.31138521,95905.0,95894.0,0.0009974]
[1733124531598,0.00230699,95904.0,95894.0,0.0009974]
[1733124531808,0.31138921,95903.0,95894.0,0.01633327]
[1733124532029,0.10284521,95903.0,95894.0,0.0009974]
[1733124532675,0.208548,95901.0,95894.0,0.0009974]
[1733124532891,0.1051524,95900.0,95894.0,0.0009974]
[1733124533106,0.34513157,95900.0,95894.0,0.0009974]
[1733124533315,0.3137024,95900.0,95894.0,0.0009974]
[1733124533527,0.5222534,95900.0,95894.0,0.0009974]
[1733124534429,0.5232544,95900.0,95894.0,0.0009974]
[1733124534879,0.5222544,95900.0,95894.0,0.0009974]
[1733124535101,0.3137024,95900.0,95894.0,0.0009974]
[1733124535555,0.208552,95899.0,95894.0,0.0009974]
[1733124535775,0.10515251,95898.0,95894.0,0.0009974]
[1733124535982,0.208557,95897.0,95894.0,0.0009974]
[1733124536203,0.15,95894.0,95888.0,0.0037721]
[1733124536411,0.208574,95889.0,95888.0,0.0037721]
[1733124536625,0.31141921,95889.0,95888.0,0.0037721]
[1733124537920,0.31241921,95889.0,95888.0,0.0037721]
[1733124539281,0.10384521,95889.0,95888.0,0.0037721]
[1733124539491,0.10384521,95889.0,95888.0,0.0036721]
[1733124539925,0.10557581,95889.0,95888.0,0.0036721]
[1733124540376,0.10557581,95889.0,95888.0,0.1250721]
[1733124540377,0.0027306,95889.0,95888.0,0.1250721]
[1733124540820,0.0027306,95889.0,95888.0,0.18096502]
[1733124541052,0.0027306,95889.0,95888.0,0.1250721]
[1733124542446,0.10557581,95889.0,95888.0,0.1250721]
[1733124542672,0.0027306,95889.0,95888.0,0.1250721]
[1733124542885,0.10557581,95889.0,95888.0,0.1250721]
[1733124543095,0.0027306,95889.0,95888.0,0.1250721]
[1733124543309,0.0017306,95889.0,95888.0,0.1250721]
[1733124545347,0.0037306,95889.0,95888.0,0.1250721]
[1733124546450,0.0017306,95889.0,95888.0,0.1250721]
[1733124546660,0.0027306,95889.0,95888.0,0.1250721]
[1733124547304,0.0017306,95889.0,95888.0,0.1250721]
[1733124549107,0.0017306,95889.0,95888.0,0.0819721]
[1733124552391,0.0017306,95889.0,95888.0,0.08322692]
[1733124553477,0.0017306,95889.0,95888.0,0.18322692]
[1733124553934,0.0017306,95889.0,95888.0,0.28607213]
[1733124554172,0.0017306,95889.0,95888.0,0.28481731]
[1733124554637,0.00059529,95906.0,95905.0,0.290739]
[1733124554870,0.00059529,95906.0,95905.0,0.3413248]
[1733124556595,0.00059529,95906.0,95905.0,0.3423248]
[1733124557365,0.00059529,95906.0,95905.0,0.36247837]
[1733124557544,0.00059529,95906.0,95905.0,0.36347837]
[1733124558203,0.00059529,95906.0,95905.0,0.43068131]
[1733124558636,0.00059529,95906.0,95905.0,0.42968131]
[1733124559054,0.00059529,95906.0,95905.0,0.43068131]
[1733124559484,0.00059529,95906.0,95905.0,0.42968131]
[1733124559700,0.00059529,95906.0,95905.0,0.36247837]
[1733124559929,0.00059529,95906.0,95905.0,0.36347837]
[1733124560142,0.00059529,95906.0,95905.0,0.56632358]
[1733124560816,0.00059529,95906.0,95905.0,0.56532358]
[1733124561030,0.00059529,95906.0,95905.0,0.65271104]
[1733124562133,0.00059529,95906.0,95905.0,0.65371104]
[1733124562614,0.00059529,95906.0,95905.0,0.65271104]
[1733124563070,0.00059529,95906.0,95905.0,0.65371104]
[1733124563808,0.00232589,95906.0,95905.0,0.65271104]
[1733124564069,0.00232589,95906.0,95905.0,0.65371104]
[1733124565280,0.00232589,95906.0,95905.0,0.65271104]
[1733124565748,0.00232589,95906.0,95905.0,0.65371104]
[1733124565985,0.00232589,95906.0,95905.0,0.75371104]
[1733124566208,0.00232589,95906.0,95905.0,0.75271104]
[1733124566697,0.00332589,95906.0,95905.0,0.75371104]
[1733124568123,0.01395398,95949.0,95905.0,0.75371104]
[1733124568124,0.16395398,95949.0,95934.0,0.208474]
[1733124568371,0.37239798,95949.0,95938.0,0.0009945]
[1733124568599,0.208447,95948.0,95939.0,0.00125303]
[1733124568825,0.208435,95954.0,95939.0,0.00125303]
[1733124569049,0.208447,95948.0,95940.0,0.00125298]
[1733124569273,0.0067302,95944.0,95939.0,0.00125306]
[1733124569535,0.0067302,95944.0,95938.0,0.0009945]
[1733124569763,0.0017302,95944.0,95938.0,0.0009945]
[1733124570294,0.0067302,95944.0,95939.0,0.00125306]
[1733124570531,0.0017302,95944.0,95939.0,0.00125306]
[1733124571448,0.0017302,95944.0,95943.0,0.02075585]
[1733124572415,0.0067302,95944.0,95943.0,0.02200846]
[1733124572629,0.0067302,95944.0,95943.0,0.12200846]
[1733124572852,0.0067302,95944.0,95943.0,0.31021241]
[1733124573071,0.0017302,95944.0,95943.0,0.41180501]
[1733124573321,0.0067302,95944.0,95943.0,0.41180501]
[1733124573757,0.0017302,95944.0,95943.0,0.41180501]
[1733124573991,0.0017302,95944.0,95943.0,0.51380501]
[1733124574201,0.0027302,95944.0,95943.0,1.21380501]
[1733124574618,0.208374,95982.0,95963.0,0.208413]
[1733124574826,0.208387,95976.0,95970.0,0.0009842]
[1733124575704,0.31121921,95981.0,95970.0,0.0009842]
[1733124575931,0.20837,95983.0,95971.0,0.00125145]
[1733124576141,0.20837,95983.0,95972.0,0.0012514]
[1733124576370,0.20837,95983.0,95973.0,0.0012514]
[1733124576635,0.003,95976.0,95974.0,0.00808162]
[1733124576852,0.003,95976.0,95975.0,0.02039416]
[1733124577061,0.20837,95983.0,95975.0,0.02039416]
[1733124577518,0.21337,95983.0,95975.0,0.02039416]